[Event "Titled Tuesday Blitz November 08 Late 2022"]
[White "Musovic, Armin"]
[Black "Leiva, Gianmarco"]
[WhiteFideId "939935"]
[BlackFideId "3804399"]
[WhiteElo "2288"]
[BlackElo "2286"]
[Result "0-1"]
[Round "07"]
[TimeControl "180+1"]
[Date "2022.11.09"]
[WhiteClock "0:00:08"]
[BlackClock "0:00:07"]

1. e4 {[%clk 0:03:00]}  c5 {[%clk 0:02:59]} 2. c3 {[%clk 0:03:00]}  d5 {[%clk 0:02:57]} 3. exd5 {[%clk 0:03:00]}  Qxd5 {[%clk 0:02:58]} 4. Na3 {[%clk 0:03:01]}  Nf6 {[%clk 0:02:58]} 5. h3 {[%clk 0:03:00]}  e6 {[%clk 0:02:58]} 6. Nf3 {[%clk 0:03:01]}  Be7 {[%clk 0:02:56]} 7. d4 {[%clk 0:02:57]}  cxd4 {[%clk 0:02:53]} 8. Nb5 {[%clk 0:02:58]}  Na6 {[%clk 0:02:50]} 9. Qa4 {[%clk 0:02:45]}  Qe4+ {[%clk 0:02:41]} 10. Be2 {[%clk 0:02:45]}  Bd7 {[%clk 0:02:33]} 11. Qxd4 {[%clk 0:02:44]}  O-O {[%clk 0:02:11]} 12. Qxe4 {[%clk 0:02:35]}  Nxe4 {[%clk 0:02:12]} 13. O-O {[%clk 0:02:32]}  Rfd8 {[%clk 0:02:06]} 14. Bf4 {[%clk 0:02:12]}  f6 {[%clk 0:02:04]} 15. Rad1 {[%clk 0:02:04]}  e5 {[%clk 0:02:03]} 16. Be3 {[%clk 0:02:00]}  Be6 {[%clk 0:01:52]} 17. Bxa7 {[%clk 0:01:53]}  Bxa2 {[%clk 0:01:41]} 18. Bb6 {[%clk 0:01:53]}  Rxd1 {[%clk 0:01:39]} 19. Rxd1 {[%clk 0:01:54]}  Be6 {[%clk 0:01:23]} 20. b4 {[%clk 0:01:29]}  Rc8 {[%clk 0:01:21]} 21. Rd3 {[%clk 0:01:00]}  Bc4 {[%clk 0:01:21]} 22. Re3 {[%clk 0:01:01]}  Bxb5 {[%clk 0:01:20]} 23. Bxb5 {[%clk 0:00:56]}  Nd6 {[%clk 0:01:02]} 24. Bd7 {[%clk 0:00:53]}  Ra8 {[%clk 0:01:02]} 25. b5 {[%clk 0:00:45]}  Nb8 {[%clk 0:00:54]} 26. Be6+ {[%clk 0:00:45]}  Kf8 {[%clk 0:00:54]} 27. c4 {[%clk 0:00:45]}  Ke8 {[%clk 0:00:52]} 28. Bc7 {[%clk 0:00:25]}  Nd7 {[%clk 0:00:52]} 29. Bxd7+ {[%clk 0:00:23]}  Kxd7 {[%clk 0:00:52]} 30. Bxd6 {[%clk 0:00:24]}  Bxd6 {[%clk 0:00:51]} 31. Nd2 {[%clk 0:00:23]}  Ra1+ {[%clk 0:00:49]} 32. Kh2 {[%clk 0:00:21]}  Rd1 {[%clk 0:00:48]} 33. Nb3 {[%clk 0:00:20]}  b6 {[%clk 0:00:41]} 34. g3 {[%clk 0:00:20]}  f5 {[%clk 0:00:36]} 35. Kg2 {[%clk 0:00:20]}  Ke6 {[%clk 0:00:35]} 36. Rc3 {[%clk 0:00:19]}  Rb1 {[%clk 0:00:24]} 37. c5 {[%clk 0:00:19]}  bxc5 {[%clk 0:00:24]} 38. Nxc5+ {[%clk 0:00:20]}  Kd5 {[%clk 0:00:22]} 39. Nb3 {[%clk 0:00:16]}  Bb4 {[%clk 0:00:19]} 40. Rd3+ {[%clk 0:00:14]}  Kc4 {[%clk 0:00:11]} 41. Re3 {[%clk 0:00:12]}  Rxb3 {[%clk 0:00:11]} 42. Rxe5 {[%clk 0:00:10]}  g6 {[%clk 0:00:09]} 43. g4 {[%clk 0:00:08]}  Bc3 {[%clk 0:00:06]} 44. gxf5 {[%clk 0:00:07]}  Bxe5 {[%clk 0:00:06]} 45. f6 {[%clk 0:00:08]}  Bxf6 {[%clk 0:00:07]} 0-1


[Site "https://www.chess.com"]

[Event "Titled Tuesday Blitz November 08 Late 2022"]
[White "Paiva, Henrique M A Albergaria"]
[Black "Kirillov, Dmitry"]
[WhiteFideId "1920995"]
[BlackFideId "34180572"]
[WhiteElo "1953"]
[BlackElo "2095"]
[Result "1-0"]
[Round "07"]
[TimeControl "180+1"]
[Date "2022.11.09"]
[WhiteClock "0:01:10"]
[BlackClock "0:01:04"]

1. f4 {[%clk 0:02:57]}  e5 {[%clk 0:02:59]} 2. fxe5 {[%clk 0:02:56]}  d6 {[%clk 0:02:59]} 3. Nf3 {[%clk 0:02:53]}  dxe5 {[%clk 0:02:59]} 4. e4 {[%clk 0:02:53]}  Bd6 {[%clk 0:02:59]} 5. Bc4 {[%clk 0:02:53]}  h6 {[%clk 0:02:58]} 6. d3 {[%clk 0:02:53]}  Nf6 {[%clk 0:02:57]} 7. Nc3 {[%clk 0:02:52]}  a6 {[%clk 0:02:56]} 8. a3 {[%clk 0:02:51]}  Nc6 {[%clk 0:02:55]} 9. O-O {[%clk 0:02:51]}  Bg4 {[%clk 0:02:52]} 10. Be3 {[%clk 0:02:49]}  Qd7 {[%clk 0:02:50]} 11. Qe1 {[%clk 0:02:46]}  b5 {[%clk 0:02:34]} 12. Ba2 {[%clk 0:02:40]}  b4 {[%clk 0:02:11]} 13. axb4 {[%clk 0:02:19]}  Nxb4 {[%clk 0:02:11]} 14. Bb3 {[%clk 0:02:19]}  O-O {[%clk 0:02:08]} 15. Nh4 {[%clk 0:02:14]}  Be6 {[%clk 0:02:00]} 16. Ba4 {[%clk 0:02:07]}  c6 {[%clk 0:01:57]} 17. Rxf6 {[%clk 0:01:45]}  gxf6 {[%clk 0:01:54]} 18. Bxh6 {[%clk 0:01:45]}  Kh7 {[%clk 0:01:42]} 19. Bxf8 {[%clk 0:01:22]}  Rxf8 {[%clk 0:01:43]} 20. Qf2 {[%clk 0:01:22]}  Rg8 {[%clk 0:01:32]} 21. Nf5 {[%clk 0:01:16]}  Bxf5 {[%clk 0:01:28]} 22. exf5 {[%clk 0:01:16]}  Rg5 {[%clk 0:01:20]} 23. Ne4 {[%clk 0:01:10]}  Rxf5 {[%clk 0:01:05]} 24. Nxf6+ {[%clk 0:01:09]}  Rxf6 {[%clk 0:01:05]} 25. Qxf6 {[%clk 0:01:10]}  Bc5+ {[%clk 0:01:04]} 26. Kh1 {[%clk 0:01:10]} 1-0


[Site "https://www.chess.com"]

[Event "Titled Tuesday Blitz November 08 Late 2022"]
[White "Paravyan, David"]
[Black "Holt, Conrad"]
[WhiteFideId "4194985"]
[BlackFideId "2034387"]
[WhiteElo "2546"]
[BlackElo "2592"]
[Result "1-0"]
[Round "07"]
[TimeControl "180+1"]
[Date "2022.11.08"]
[WhiteClock "0:00:23"]
[BlackClock "0:00:02"]

1. e4 {[%clk 0:03:00]}  e6 {[%clk 0:03:00]} 2. d4 {[%clk 0:03:01]}  d5 {[%clk 0:03:00]} 3. Nc3 {[%clk 0:03:01]}  Nf6 {[%clk 0:03:00]} 4. Bg5 {[%clk 0:03:02]}  dxe4 {[%clk 0:03:00]} 5. Nxe4 {[%clk 0:03:02]}  Be7 {[%clk 0:03:00]} 6. Nxf6+ {[%clk 0:03:03]}  Bxf6 {[%clk 0:03:01]} 7. Bxf6 {[%clk 0:03:04]}  Qxf6 {[%clk 0:03:01]} 8. c3 {[%clk 0:03:04]}  O-O {[%clk 0:03:00]} 9. Qf3 {[%clk 0:03:05]}  Qxf3 {[%clk 0:02:57]} 10. Nxf3 {[%clk 0:03:06]}  b6 {[%clk 0:02:53]} 11. g3 {[%clk 0:03:06]}  Bb7 {[%clk 0:02:53]} 12. Bg2 {[%clk 0:03:07]}  Nd7 {[%clk 0:02:52]} 13. O-O-O {[%clk 0:03:07]}  Rfd8 {[%clk 0:02:50]} 14. Nh4 {[%clk 0:03:08]}  Bxg2 {[%clk 0:02:47]} 15. Nxg2 {[%clk 0:03:08]}  Nf6 {[%clk 0:02:43]} 16. Ne3 {[%clk 0:03:08]}  h5 {[%clk 0:02:35]} 17. Rhe1 {[%clk 0:03:06]}  g6 {[%clk 0:02:32]} 18. Kc2 {[%clk 0:03:06]}  Kg7 {[%clk 0:02:32]} 19. a4 {[%clk 0:03:05]}  a5 {[%clk 0:02:24]} 20. Nc4 {[%clk 0:03:04]}  Ng4 {[%clk 0:02:20]} 21. f3 {[%clk 0:02:52]}  Nf6 {[%clk 0:02:05]} 22. h3 {[%clk 0:02:23]}  h4 {[%clk 0:02:02]} 23. g4 {[%clk 0:02:22]}  Nd5 {[%clk 0:02:00]} 24. Re4 {[%clk 0:02:20]}  g5 {[%clk 0:01:51]} 25. Ne3 {[%clk 0:01:56]}  Nf4 {[%clk 0:01:44]} 26. Rh1 {[%clk 0:01:52]}  Kg6 {[%clk 0:01:38]} 27. Rh2 {[%clk 0:01:47]}  f5 {[%clk 0:01:31]} 28. Re5 {[%clk 0:01:43]}  Rf8 {[%clk 0:01:31]} 29. Ng2 {[%clk 0:01:36]}  fxg4 {[%clk 0:01:21]} 30. fxg4 {[%clk 0:01:11]}  Rae8 {[%clk 0:00:44]} 31. Nxf4+ {[%clk 0:01:06]}  Rxf4 {[%clk 0:00:44]} 32. Kd3 {[%clk 0:00:55]}  Rf3+ {[%clk 0:00:35]} 33. Re3 {[%clk 0:00:49]}  Rxe3+ {[%clk 0:00:32]} 34. Kxe3 {[%clk 0:00:50]}  e5 {[%clk 0:00:31]} 35. d5 {[%clk 0:00:45]}  Rf8 {[%clk 0:00:32]} 36. Ke4 {[%clk 0:00:41]}  Rf4+ {[%clk 0:00:31]} 37. Kxe5 {[%clk 0:00:41]}  Rxa4 {[%clk 0:00:31]} 38. Rf2 {[%clk 0:00:41]}  Ra2 {[%clk 0:00:24]} 39. Rf6+ {[%clk 0:00:41]}  Kg7 {[%clk 0:00:23]} 40. Rc6 {[%clk 0:00:41]}  Rxb2 {[%clk 0:00:22]} 41. Rxc7+ {[%clk 0:00:42]}  Kf8 {[%clk 0:00:20]} 42. Kf6 {[%clk 0:00:40]}  Ke8 {[%clk 0:00:19]} 43. Kxg5 {[%clk 0:00:40]}  a4 {[%clk 0:00:19]} 44. Ra7 {[%clk 0:00:40]}  b5 {[%clk 0:00:18]} 45. Kxh4 {[%clk 0:00:32]}  Rc2 {[%clk 0:00:17]} 46. Ra5 {[%clk 0:00:32]}  Rxc3 {[%clk 0:00:14]} 47. Rxb5 {[%clk 0:00:32]}  Ke7 {[%clk 0:00:13]} 48. Rb6 {[%clk 0:00:32]}  Rd3 {[%clk 0:00:12]} 49. Ra6 {[%clk 0:00:32]}  a3 {[%clk 0:00:12]} 50. d6+ {[%clk 0:00:31]}  Ke6 {[%clk 0:00:12]} 51. g5 {[%clk 0:00:30]}  Kf5 {[%clk 0:00:11]} 52. Ra4 {[%clk 0:00:24]}  Kg6 {[%clk 0:00:01]} 53. Kg4 {[%clk 0:00:25]}  Rxd6 {[%clk 0:00:02]} 54. h4 {[%clk 0:00:25]}  Rd3 {[%clk 0:00:01]} 55. h5+ {[%clk 0:00:24]}  Kf7 {[%clk 0:00:02]} 56. Ra7+ {[%clk 0:00:23]}  Ke6 {[%clk 0:00:02]} 57. h6 {[%clk 0:00:23]} 1-0


[Site "https://www.chess.com"]

[Event "Titled Tuesday Blitz November 08 Late 2022"]
[White "Prem, Pranav"]
[Black "Ferreira, Vitor Hugo Vieira"]
[WhiteFideId "30901057"]
[BlackFideId "2119765"]
[WhiteElo "1970"]
[BlackElo "2168"]
[Result "1-0"]
[Round "07"]
[TimeControl "180+1"]
[Date "2022.11.09"]
[WhiteClock "0:00:30"]
[BlackClock "0:01:30"]

1. d4 {[%clk 0:03:00]}  d5 {[%clk 0:02:59]} 2. c4 {[%clk 0:03:01]}  c6 {[%clk 0:02:59]} 3. Nf3 {[%clk 0:03:01]}  Nf6 {[%clk 0:02:59]} 4. e3 {[%clk 0:02:59]}  e6 {[%clk 0:02:57]} 5. b3 {[%clk 0:02:59]}  Nbd7 {[%clk 0:02:56]} 6. Bb2 {[%clk 0:02:59]}  Bd6 {[%clk 0:02:56]} 7. Bd3 {[%clk 0:02:58]}  O-O {[%clk 0:02:56]} 8. Nbd2 {[%clk 0:02:56]}  b6 {[%clk 0:02:55]} 9. O-O {[%clk 0:02:54]}  Bb7 {[%clk 0:02:55]} 10. Ne5 {[%clk 0:02:52]}  c5 {[%clk 0:02:55]} 11. cxd5 {[%clk 0:02:49]}  exd5 {[%clk 0:02:54]} 12. f4 {[%clk 0:02:42]}  Ne4 {[%clk 0:02:51]} 13. Nxe4 {[%clk 0:02:40]}  dxe4 {[%clk 0:02:51]} 14. Bc4 {[%clk 0:02:40]}  a6 {[%clk 0:02:48]} 15. Qh5 {[%clk 0:02:17]}  Qe7 {[%clk 0:02:35]} 16. Nxd7 {[%clk 0:02:09]}  Qxd7 {[%clk 0:02:34]} 17. dxc5 {[%clk 0:02:04]}  Bxc5 {[%clk 0:02:33]} 18. Qg5 {[%clk 0:01:38]}  Bxe3+ {[%clk 0:02:24]} 19. Kh1 {[%clk 0:01:39]}  Bd4 {[%clk 0:02:25]} 20. Rad1 {[%clk 0:01:39]}  h6 {[%clk 0:02:21]} 21. Qg3 {[%clk 0:01:30]}  Rad8 {[%clk 0:02:10]} 22. Bxd4 {[%clk 0:01:22]}  Qxd4 {[%clk 0:02:11]} 23. Rxd4 {[%clk 0:01:20]}  Rxd4 {[%clk 0:02:11]} 24. f5 {[%clk 0:01:19]}  Kh8 {[%clk 0:02:05]} 25. f6 {[%clk 0:01:14]}  g6 {[%clk 0:02:03]} 26. Qc7 {[%clk 0:01:11]}  Bd5 {[%clk 0:01:53]} 27. Qd6 {[%clk 0:00:59]}  Re8 {[%clk 0:01:46]} 28. Bxd5 {[%clk 0:00:58]}  e3 {[%clk 0:01:47]} 29. Qd7 {[%clk 0:00:46]}  Rf8 {[%clk 0:01:35]} 30. Qe7 {[%clk 0:00:33]}  Kg8 {[%clk 0:01:30]} 31. Qxe3 {[%clk 0:00:30]}  Rxd5 {[%clk 0:01:30]} 32. Qxh6 {[%clk 0:00:30]}  Rf5 {[%clk 0:01:30]} 33. Qg7# {[%clk 0:00:30]} 1-0


[Site "https://www.chess.com"]

[Event "Titled Tuesday Blitz November 08 Late 2022"]
[White "Przybylski, Wojciech"]
[Black "Yano, William Jorge Froes"]
[WhiteFideId "1117599"]
[BlackFideId "2112949"]
[WhiteElo "2221"]
[BlackElo "2122"]
[Result "1-0"]
[Round "07"]
[TimeControl "180+1"]
[Date "2022.11.09"]
[WhiteClock "0:00:30"]
[BlackClock "0:00:06"]

1. e4 {[%clk 0:03:00]}  e6 {[%clk 0:03:00]} 2. d4 {[%clk 0:02:58]}  d5 {[%clk 0:03:00]} 3. Nc3 {[%clk 0:02:55]}  Bb4 {[%clk 0:03:00]} 4. e5 {[%clk 0:02:53]}  c5 {[%clk 0:03:00]} 5. a3 {[%clk 0:02:53]}  Ba5 {[%clk 0:03:01]} 6. b4 {[%clk 0:02:51]}  cxd4 {[%clk 0:03:01]} 7. Nb5 {[%clk 0:02:51]}  Bc7 {[%clk 0:03:01]} 8. f4 {[%clk 0:02:50]}  a5 {[%clk 0:03:01]} 9. Nxc7+ {[%clk 0:02:46]}  Qxc7 {[%clk 0:03:01]} 10. b5 {[%clk 0:02:46]}  a4 {[%clk 0:02:55]} 11. Bd3 {[%clk 0:02:40]}  Ne7 {[%clk 0:02:55]} 12. Ne2 {[%clk 0:02:37]}  Bd7 {[%clk 0:02:49]} 13. Nxd4 {[%clk 0:02:35]}  Qc3+ {[%clk 0:02:40]} 14. Bd2 {[%clk 0:02:34]}  Qxd4 {[%clk 0:02:38]} 15. Rb1 {[%clk 0:02:34]}  Qb6 {[%clk 0:02:18]} 16. Qg4 {[%clk 0:02:31]}  g6 {[%clk 0:02:08]} 17. Qg5 {[%clk 0:02:19]}  Na6 {[%clk 0:01:53]} 18. Ke2 {[%clk 0:02:06]}  Nc5 {[%clk 0:01:52]} 19. Be3 {[%clk 0:02:03]}  Ra5 {[%clk 0:01:41]} 20. Bd2 {[%clk 0:01:41]}  Ra8 {[%clk 0:01:05]} 21. Be3 {[%clk 0:01:39]}  Nf5 {[%clk 0:00:46]} 22. Bf2 {[%clk 0:01:29]}  Ra5 {[%clk 0:00:44]} 23. g4 {[%clk 0:01:26]}  Ne7 {[%clk 0:00:39]} 24. Qf6 {[%clk 0:01:20]}  Rg8 {[%clk 0:00:37]} 25. Bh4 {[%clk 0:01:11]}  Nc8 {[%clk 0:00:13]} 26. Rhd1 {[%clk 0:00:40]}  Nxd3 {[%clk 0:00:11]} 27. cxd3 {[%clk 0:00:40]}  Rxb5 {[%clk 0:00:11]} 28. Rdc1 {[%clk 0:00:30]}  Rb2+ {[%clk 0:00:06]} 29. Kf3 {[%clk 0:00:30]} 1-0


[Site "https://www.chess.com"]

[Event "Titled Tuesday Blitz November 08 Late 2022"]
[White "Ristic, Nebojsa B"]
[Black "Aguilar, Juan"]
[WhiteFideId "935468"]
[BlackFideId "3800091"]
[WhiteElo "2320"]
[BlackElo "2421"]
[Result "1-0"]
[Round "07"]
[TimeControl "180+1"]
[Date "2022.11.09"]
[WhiteClock "0:01:23"]
[BlackClock "0:00:03"]

1. d4 {[%clk 0:03:00]}  Nf6 {[%clk 0:02:59]} 2. Bf4 {[%clk 0:02:57]}  c5 {[%clk 0:02:58]} 3. e3 {[%clk 0:02:54]}  Nd5 {[%clk 0:02:57]} 4. Bg3 {[%clk 0:02:49]}  Qb6 {[%clk 0:02:56]} 5. b3 {[%clk 0:02:48]}  cxd4 {[%clk 0:02:20]} 6. exd4 {[%clk 0:02:49]}  Nc6 {[%clk 0:02:18]} 7. Nf3 {[%clk 0:02:49]}  d6 {[%clk 0:02:15]} 8. Bd3 {[%clk 0:02:46]}  Bg4 {[%clk 0:02:13]} 9. c3 {[%clk 0:02:45]}  g6 {[%clk 0:02:07]} 10. h3 {[%clk 0:02:45]}  Bxf3 {[%clk 0:02:07]} 11. Qxf3 {[%clk 0:02:45]}  Nf6 {[%clk 0:02:03]} 12. Nd2 {[%clk 0:02:42]}  Bg7 {[%clk 0:02:02]} 13. Nc4 {[%clk 0:02:41]}  Qd8 {[%clk 0:02:00]} 14. h4 {[%clk 0:02:40]}  h5 {[%clk 0:01:57]} 15. O-O {[%clk 0:02:38]}  O-O {[%clk 0:01:53]} 16. Rfe1 {[%clk 0:02:38]}  Rc8 {[%clk 0:01:49]} 17. a4 {[%clk 0:02:36]}  Re8 {[%clk 0:01:31]} 18. Rac1 {[%clk 0:02:35]}  a6 {[%clk 0:01:16]} 19. Bf4 {[%clk 0:02:31]}  b5 {[%clk 0:01:14]} 20. axb5 {[%clk 0:02:31]}  axb5 {[%clk 0:01:14]} 21. Ne3 {[%clk 0:02:11]}  b4 {[%clk 0:01:14]} 22. d5 {[%clk 0:02:10]}  Na5 {[%clk 0:01:07]} 23. cxb4 {[%clk 0:02:05]}  Nxb3 {[%clk 0:01:07]} 24. Rxc8 {[%clk 0:02:00]}  Qxc8 {[%clk 0:01:08]} 25. Bc4 {[%clk 0:01:58]}  Nd2 {[%clk 0:01:04]} 26. Qe2 {[%clk 0:01:57]}  Nxc4 {[%clk 0:00:54]} 27. Qxc4 {[%clk 0:01:57]}  Qxc4 {[%clk 0:00:50]} 28. Nxc4 {[%clk 0:01:58]}  Nxd5 {[%clk 0:00:50]} 29. Nxd6 {[%clk 0:01:52]}  Ra8 {[%clk 0:00:41]} 30. Nc4 {[%clk 0:01:42]}  Nxf4 {[%clk 0:00:39]} 31. Rxe7 {[%clk 0:01:42]}  Bf8 {[%clk 0:00:30]} 32. Re4 {[%clk 0:01:41]}  Nd5 {[%clk 0:00:26]} 33. b5 {[%clk 0:01:40]}  Nc3 {[%clk 0:00:25]} 34. Re5 {[%clk 0:01:39]}  Rb8 {[%clk 0:00:25]} 35. b6 {[%clk 0:01:38]}  Rxb6 {[%clk 0:00:24]} 36. Nxb6 {[%clk 0:01:37]}  Bg7 {[%clk 0:00:23]} 37. Re8+ {[%clk 0:01:37]}  Kh7 {[%clk 0:00:23]} 38. Re7 {[%clk 0:01:36]}  Kg8 {[%clk 0:00:23]} 39. Nd7 {[%clk 0:01:35]}  Nd5 {[%clk 0:00:21]} 40. Re8+ {[%clk 0:01:36]}  Kh7 {[%clk 0:00:21]} 41. Nf8+ {[%clk 0:01:35]}  Kh6 {[%clk 0:00:20]} 42. Rd8 {[%clk 0:01:34]}  Nf4 {[%clk 0:00:18]} 43. g3 {[%clk 0:01:32]}  Ne2+ {[%clk 0:00:17]} 44. Kf1 {[%clk 0:01:32]}  Nd4 {[%clk 0:00:16]} 45. Nd7 {[%clk 0:01:32]}  Ne6 {[%clk 0:00:15]} 46. Ra8 {[%clk 0:01:30]}  Bd4 {[%clk 0:00:14]} 47. Ra5 {[%clk 0:01:28]}  Kg7 {[%clk 0:00:14]} 48. Ne5 {[%clk 0:01:27]}  Kf6 {[%clk 0:00:06]} 49. Nf3 {[%clk 0:01:28]}  Bc3 {[%clk 0:00:05]} 50. Ra6 {[%clk 0:01:28]}  Kg7 {[%clk 0:00:05]} 51. Ke2 {[%clk 0:01:27]}  Nc5 {[%clk 0:00:05]} 52. Rc6 {[%clk 0:01:26]}  Bb4 {[%clk 0:00:04]} 53. Ng5 {[%clk 0:01:25]}  Nd7 {[%clk 0:00:02]} 54. Rc7 {[%clk 0:01:25]}  Ne5 {[%clk 0:00:03]} 55. f4 {[%clk 0:01:23]} 1-0


[Site "https://www.chess.com"]

[Event "Titled Tuesday Blitz November 08 Late 2022"]
[White "Rodriguez Fontecha, Marcos"]
[Black "Haszon, David"]
[WhiteFideId "2256576"]
[BlackFideId "733610"]
[WhiteElo "2263"]
[BlackElo "2211"]
[Result "0-1"]
[Round "07"]
[TimeControl "180+1"]
[Date "2022.11.09"]
[WhiteClock "0:00:11"]
[BlackClock "0:00:20"]

1. d4 {[%clk 0:03:00]}  Nf6 {[%clk 0:02:57]} 2. Nf3 {[%clk 0:03:00]}  g6 {[%clk 0:02:55]} 3. Bg5 {[%clk 0:03:00]}  Ne4 {[%clk 0:02:54]} 4. Bf4 {[%clk 0:02:59]}  Bg7 {[%clk 0:02:54]} 5. Nbd2 {[%clk 0:02:59]}  d5 {[%clk 0:02:53]} 6. Nxe4 {[%clk 0:02:58]}  dxe4 {[%clk 0:02:54]} 7. Ne5 {[%clk 0:02:58]}  Nc6 {[%clk 0:02:40]} 8. e3 {[%clk 0:02:52]}  O-O {[%clk 0:02:31]} 9. Bc4 {[%clk 0:02:46]}  Nxe5 {[%clk 0:02:25]} 10. Bxe5 {[%clk 0:02:47]}  c5 {[%clk 0:02:17]} 11. O-O {[%clk 0:02:44]}  cxd4 {[%clk 0:02:11]} 12. Bxd4 {[%clk 0:02:42]}  Bxd4 {[%clk 0:01:52]} 13. Qxd4 {[%clk 0:02:43]}  Qxd4 {[%clk 0:01:49]} 14. exd4 {[%clk 0:02:44]}  Kg7 {[%clk 0:01:44]} 15. Rae1 {[%clk 0:02:37]}  Bf5 {[%clk 0:01:28]} 16. g4 {[%clk 0:02:32]}  Bxg4 {[%clk 0:01:23]} 17. Rxe4 {[%clk 0:02:32]}  Rac8 {[%clk 0:01:13]} 18. Bb3 {[%clk 0:02:21]}  Be6 {[%clk 0:01:08]} 19. d5 {[%clk 0:02:16]}  Bh3 {[%clk 0:01:00]} 20. Rfe1 {[%clk 0:02:12]}  e6 {[%clk 0:00:59]} 21. d6 {[%clk 0:02:04]}  Bf5 {[%clk 0:00:54]} 22. d7 {[%clk 0:02:03]}  Rc7 {[%clk 0:00:50]} 23. Rd4 {[%clk 0:02:04]}  Rd8 {[%clk 0:00:50]} 24. Red1 {[%clk 0:02:03]}  Kf6 {[%clk 0:00:49]} 25. c3 {[%clk 0:01:52]}  Ke7 {[%clk 0:00:48]} 26. Ba4 {[%clk 0:01:52]}  a6 {[%clk 0:00:41]} 27. c4 {[%clk 0:01:50]}  e5 {[%clk 0:00:27]} 28. Rd5 {[%clk 0:01:41]}  Rxc4 {[%clk 0:00:21]} 29. Rxe5+ {[%clk 0:01:35]}  Be6 {[%clk 0:00:20]} 30. Bb3 {[%clk 0:01:25]}  Rc6 {[%clk 0:00:21]} 31. Re3 {[%clk 0:00:58]}  Rxd7 {[%clk 0:00:19]} 32. Rxd7+ {[%clk 0:00:58]}  Kxd7 {[%clk 0:00:20]} 33. Bd1 {[%clk 0:00:47]}  Bxa2 {[%clk 0:00:15]} 34. b3 {[%clk 0:00:47]}  Bb1 {[%clk 0:00:15]} 35. Kg2 {[%clk 0:00:46]}  Bf5 {[%clk 0:00:15]} 36. Kg3 {[%clk 0:00:45]}  Be6 {[%clk 0:00:16]} 37. Bf3 {[%clk 0:00:44]}  Rd6 {[%clk 0:00:16]} 38. Bxb7 {[%clk 0:00:44]}  Rb6 {[%clk 0:00:17]} 39. Rd3+ {[%clk 0:00:32]}  Ke7 {[%clk 0:00:17]} 40. Bd5 {[%clk 0:00:30]}  Bxd5 {[%clk 0:00:16]} 41. Rxd5 {[%clk 0:00:30]}  Rxb3+ {[%clk 0:00:17]} 42. f3 {[%clk 0:00:30]}  Rb7 {[%clk 0:00:17]} 43. Ra5 {[%clk 0:00:28]}  Ra7 {[%clk 0:00:18]} 44. Kf4 {[%clk 0:00:29]}  Kd6 {[%clk 0:00:19]} 45. Kg5 {[%clk 0:00:29]}  h5 {[%clk 0:00:18]} 46. Kf6 {[%clk 0:00:26]}  Kc6 {[%clk 0:00:18]} 47. Ra1 {[%clk 0:00:26]}  a5 {[%clk 0:00:18]} 48. Rc1+ {[%clk 0:00:26]}  Kd5 {[%clk 0:00:18]} 49. Rd1+ {[%clk 0:00:23]}  Kc4 {[%clk 0:00:18]} 50. Rc1+ {[%clk 0:00:21]}  Kd3 {[%clk 0:00:19]} 51. Rd1+ {[%clk 0:00:19]}  Ke2 {[%clk 0:00:19]} 52. Ra1 {[%clk 0:00:16]}  Kxf3 {[%clk 0:00:18]} 53. Ra4 {[%clk 0:00:17]}  Ke3 {[%clk 0:00:17]} 54. h4 {[%clk 0:00:17]}  Kd3 {[%clk 0:00:18]} 55. Ra3+ {[%clk 0:00:15]}  Kc4 {[%clk 0:00:18]} 56. Ra4+ {[%clk 0:00:15]}  Kb5 {[%clk 0:00:18]} 57. Ra1 {[%clk 0:00:16]}  a4 {[%clk 0:00:18]} 58. Rb1+ {[%clk 0:00:17]}  Kc4 {[%clk 0:00:19]} 59. Rc1+ {[%clk 0:00:17]}  Kb3 {[%clk 0:00:19]} 60. Rb1+ {[%clk 0:00:17]}  Kc2 {[%clk 0:00:19]} 61. Rb8 {[%clk 0:00:12]}  a3 {[%clk 0:00:20]} 62. Rc8+ {[%clk 0:00:13]}  Kd3 {[%clk 0:00:19]} 63. Rd8+ {[%clk 0:00:13]}  Ke4 {[%clk 0:00:20]} 64. Re8+ {[%clk 0:00:13]}  Kf4 {[%clk 0:00:20]} 65. Re1 {[%clk 0:00:11]}  a2 {[%clk 0:00:20]} 66. Ra1 {[%clk 0:00:12]}  Ke4 {[%clk 0:00:20]} 67. Kg7 {[%clk 0:00:11]}  Kd4 {[%clk 0:00:20]} 0-1


[Site "https://www.chess.com"]

[Event "Titled Tuesday Blitz November 08 Late 2022"]
[White "Romanchuk, Viktor"]
[Black "Poliakova, Varvara"]
[WhiteFideId "14109271"]
[BlackFideId "13518313"]
[WhiteElo "2242"]
[BlackElo "2099"]
[Result "1-0"]
[Round "07"]
[TimeControl "180+1"]
[Date "2022.11.09"]
[WhiteClock "0:00:02"]
[BlackClock "0:00:04"]

1. d4 {[%clk 0:03:00]}  f5 {[%clk 0:02:59]} 2. Nc3 {[%clk 0:02:59]}  d5 {[%clk 0:02:58]} 3. f3 {[%clk 0:02:57]}  Nf6 {[%clk 0:02:57]} 4. Bg5 {[%clk 0:02:56]}  e6 {[%clk 0:02:50]} 5. e4 {[%clk 0:02:55]}  Be7 {[%clk 0:02:50]} 6. exf5 {[%clk 0:02:55]}  exf5 {[%clk 0:02:49]} 7. Bd3 {[%clk 0:02:54]}  O-O {[%clk 0:02:47]} 8. Nge2 {[%clk 0:02:53]}  c6 {[%clk 0:02:44]} 9. Qd2 {[%clk 0:02:52]}  b5 {[%clk 0:02:42]} 10. O-O-O {[%clk 0:02:41]}  a5 {[%clk 0:02:37]} 11. Nf4 {[%clk 0:02:41]}  a4 {[%clk 0:02:36]} 12. Rde1 {[%clk 0:02:35]}  b4 {[%clk 0:02:34]} 13. Nb1 {[%clk 0:02:31]}  b3 {[%clk 0:02:16]} 14. cxb3 {[%clk 0:01:59]}  axb3 {[%clk 0:02:13]} 15. axb3 {[%clk 0:01:59]}  Na6 {[%clk 0:02:12]} 16. Qe2 {[%clk 0:01:34]}  Rf7 {[%clk 0:01:55]} 17. Nc3 {[%clk 0:01:23]}  Nb4 {[%clk 0:01:53]} 18. Bb1 {[%clk 0:01:23]}  h6 {[%clk 0:01:45]} 19. Ng6 {[%clk 0:01:18]}  Bd6 {[%clk 0:01:28]} 20. Bd2 {[%clk 0:00:56]}  Ba6 {[%clk 0:01:24]} 21. Qe6 {[%clk 0:00:54]}  Nd3+ {[%clk 0:01:11]} 22. Bxd3 {[%clk 0:00:53]}  Bxd3 {[%clk 0:01:12]} 23. Na4 {[%clk 0:00:45]}  Bb5 {[%clk 0:01:02]} 24. Bf4 {[%clk 0:00:37]}  Bxf4+ {[%clk 0:00:57]} 25. Nxf4 {[%clk 0:00:38]}  Bxa4 {[%clk 0:00:55]} 26. bxa4 {[%clk 0:00:37]}  Rxa4 {[%clk 0:00:55]} 27. Ng6 {[%clk 0:00:30]}  Rc4+ {[%clk 0:00:54]} 28. Kb1 {[%clk 0:00:29]}  Qd7 {[%clk 0:00:41]} 29. Ne7+ {[%clk 0:00:19]}  Kf8 {[%clk 0:00:31]} 30. Nxf5 {[%clk 0:00:18]}  Qxe6 {[%clk 0:00:29]} 31. Rxe6 {[%clk 0:00:18]}  Ra7 {[%clk 0:00:26]} 32. Rhe1 {[%clk 0:00:13]}  Rca4 {[%clk 0:00:26]} 33. R1e2 {[%clk 0:00:08]}  Kf7 {[%clk 0:00:20]} 34. Rxc6 {[%clk 0:00:07]}  Ra1+ {[%clk 0:00:19]} 35. Kc2 {[%clk 0:00:07]}  R1a4 {[%clk 0:00:18]} 36. Nd6+ {[%clk 0:00:06]}  Kg6 {[%clk 0:00:18]} 37. g3 {[%clk 0:00:05]}  Ra8 {[%clk 0:00:13]} 38. Ne8 {[%clk 0:00:05]}  Rxd4 {[%clk 0:00:12]} 39. Nxf6 {[%clk 0:00:04]}  gxf6 {[%clk 0:00:13]} 40. Ree6 {[%clk 0:00:04]}  Rc4+ {[%clk 0:00:13]} 41. Rxc4 {[%clk 0:00:04]}  dxc4 {[%clk 0:00:14]} 42. Rc6 {[%clk 0:00:04]}  Re8 {[%clk 0:00:13]} 43. Rxc4 {[%clk 0:00:04]}  Re2+ {[%clk 0:00:14]} 44. Kc3 {[%clk 0:00:04]}  Rxh2 {[%clk 0:00:15]} 45. b4 {[%clk 0:00:04]}  Rg2 {[%clk 0:00:15]} 46. Rg4+ {[%clk 0:00:03]}  Kf5 {[%clk 0:00:15]} 47. b5 {[%clk 0:00:04]}  h5 {[%clk 0:00:16]} 48. Rf4+ {[%clk 0:00:03]}  Kg5 {[%clk 0:00:16]} 49. b6 {[%clk 0:00:03]}  Rg1 {[%clk 0:00:09]} 50. Rb4 {[%clk 0:00:01]}  Rc1+ {[%clk 0:00:09]} 51. Kd4 {[%clk 0:00:01]}  Rc8 {[%clk 0:00:09]} 52. b7 {[%clk 0:00:02]}  Rb8 {[%clk 0:00:10]} 53. Kd5 {[%clk 0:00:02]}  f5 {[%clk 0:00:03]} 54. Kc6 {[%clk 0:00:02]}  f4 {[%clk 0:00:03]} 55. gxf4+ {[%clk 0:00:02]}  Kf5 {[%clk 0:00:04]} 56. Kc7 {[%clk 0:00:02]} 1-0


[Site "https://www.chess.com"]